bitfinex/quotes_BTCUSD_20220207
["timestamp","ask_amount","ask_price","bid_price","bid_amount"]
[1644194322520,0.97723022,41812.0,41807.0,0.00051129]
[1644194322719,0.059826,41809.0,41807.0,0.00051129]
[1644194323119,0.059826,41809.0,41806.0,0.0011]
[1644194323319,0.059826,41809.0,41806.0,0.0016113]
[1644194323718,0.05,41809.0,41806.0,0.0016113]
[1644194323919,1.37788559,41812.0,41806.0,0.0016113]
[1644194323920,0.97723022,41812.0,41806.0,0.0016113]
[1644194324120,0.7123,41812.0,41806.0,0.0016113]
[1644194324374,0.7123,41812.0,41806.0,0.0011]
[1644194324772,0.7123,41812.0,41807.0,0.00051045]
[1644194325671,0.7123,41812.0,41806.0,0.20671706]
[1644194325874,0.7123,41812.0,41807.0,0.00051044]
[1644194326772,0.2452829,41810.0,41806.0,0.0011]
[1644194327572,0.20071027,41809.0,41806.0,0.0011]
[1644194328616,0.3051149,41810.0,41806.0,0.0011]
[1644194329619,0.22573103,41809.0,41806.0,0.00164303]
[1644194330417,0.05,41808.0,41806.0,0.00164303]
[1644194330620,0.3051149,41810.0,41806.0,0.0011]
[1644194330818,0.05,41808.0,41806.0,0.0011]
[1644194331019,0.3051149,41810.0,41806.0,0.0011]
[1644194331217,0.05,41808.0,41806.0,0.0011]
[1644194331417,0.3051149,41810.0,41806.0,0.0011]
[1644194331617,0.20886191,41808.0,41806.0,0.0011]
[1644194332067,0.20886191,41808.0,41806.0,0.00160463]
[1644194332968,0.20886191,41808.0,41806.0,0.0011]
[1644194333571,0.3051149,41810.0,41806.0,0.0011]
[1644194333770,0.2952829,41810.0,41806.0,0.0011]
[1644194333968,0.05,41810.0,41806.0,0.00121738]
[1644194334368,0.05,41811.0,41806.0,0.00169481]
[1644194335368,0.05,41811.0,41806.0,0.00121738]
[1644194335623,0.05,41811.0,41806.0,0.00171742]
[1644194336623,0.7123,41812.0,41806.0,0.00121738]
[1644194336823,0.7123,41812.0,41806.0,0.00171742]
[1644194337826,0.7123,41812.0,41806.0,0.00121738]
[1644194338125,0.7123,41812.0,41807.0,0.00052723]
[1644194338328,0.7123,41812.0,41807.0,0.00064461]
[1644194338925,0.7123,41812.0,41807.0,0.00011738]
[1644194339125,0.7123,41812.0,41807.0,0.00054302]
[1644194339366,0.7123,41812.0,41807.0,0.0006604]
[1644194339566,0.7123,41812.0,41808.0,0.21240694]
[1644194339767,0.7123,41812.0,41808.0,0.21252432]
[1644194339972,0.7123,41812.0,41808.0,0.26252432]
[1644194340169,0.7123,41812.0,41810.0,0.20463288]
[1644194340170,0.02751093,41812.0,41810.0,0.20463288]
[1644194340368,0.02751093,41812.0,41811.0,0.330677]
[1644194340974,0.02751093,41812.0,41811.0,0.88127193]
[1644194341170,0.02751093,41812.0,41811.0,0.67749776]
[1644194341772,0.02751093,41812.0,41811.0,0.88213064]
[1644194342073,0.02751093,41812.0,41811.0,0.67749776]
[1644194342271,0.02751093,41812.0,41811.0,0.77749776]
[1644194342674,0.02751093,41812.0,41811.0,0.67749776]
[1644194343024,0.02751093,41812.0,41811.0,0.94645847]
[1644194343219,0.02751093,41812.0,41811.0,1.20224957]
[1644194344820,0.42,41820.0,41819.0,0.06614533]
[1644194345026,0.42,41820.0,41819.0,0.0479]
[1644194345220,0.07171982,41825.0,41819.0,0.6337182]
[1644194345221,0.42,41821.0,41819.0,0.6337182]
[1644194345420,0.42,41821.0,41819.0,0.7337182]
[1644194346020,0.07219484,41825.0,41822.0,0.06492319]
[1644194346226,0.25004596,41824.0,41823.0,0.330641]
[1644194346423,0.25004596,41824.0,41814.0,0.00011738]
[1644194346424,0.59403641,41824.0,41814.0,0.00011738]
[1644194346622,0.59403641,41824.0,41813.0,0.3811412]
[1644194346623,0.05,41822.0,41819.0,0.00011738]
[1644194346876,0.11964309,41820.0,41814.0,0.00011738]
[1644194347075,0.40832918,41819.0,41814.0,0.00011738]
[1644194347277,0.40832918,41819.0,41811.0,0.00011738]
[1644194347278,0.05,41815.0,41811.0,0.00011738]
[1644194347476,0.05,41818.0,41812.0,0.00011738]
[1644194347477,0.30081641,41817.0,41812.0,0.00011738]
[1644194347680,0.30081641,41817.0,41809.0,0.00011738]
[1644194347681,0.05,41813.0,41809.0,0.00011738]
[1644194347876,0.81738,41816.0,41808.0,0.00011738]
[1644194348076,0.91738,41816.0,41810.0,0.00051119]
[1644194348279,0.05,41811.0,41810.0,0.00051119]
[1644194348479,0.76738,41811.0,41810.0,0.00051119]
[1644194348677,1.098057,41811.0,41808.0,0.00011738]
[1644194348878,1.098057,41811.0,41808.0,0.00046733]
[1644194348879,0.81738,41811.0,41808.0,0.00046733]
[1644194349076,0.81738,41811.0,41807.0,0.00011738]
[1644194349077,0.71738,41811.0,41807.0,0.20445754]
[1644194349479,0.71738,41811.0,41807.0,0.40959874]
[1644194349775,0.71738,41811.0,41807.0,0.3051412]
[1644194349977,1.13738,41811.0,41809.0,0.22864587]
[1644194350177,1.13738,41811.0,41806.0,0.003503]
[1644194350528,0.05,41809.0,41806.0,0.003503]
[1644194350724,1.13738,41811.0,41806.0,0.003503]
[1644194351026,1.13738,41811.0,41808.0,0.25537239]
[1644194351228,1.18738,41811.0,41808.0,0.25537239]
[1644194351532,1.13738,41811.0,41808.0,0.25537239]
[1644194351924,1.13738,41811.0,41806.0,0.2086442]
[1644194352124,1.18738,41811.0,41806.0,0.003503]
[1644194352324,0.05,41808.0,41806.0,0.003503]
[1644194352725,0.05,41808.0,41806.0,0.00401373]
[1644194353227,0.28432773,41807.0,41806.0,0.00401373]
[1644194353427,0.61500473,41807.0,41806.0,0.00401373]
[1644194353625,0.28432773,41807.0,41806.0,0.003503]
[1644194353825,0.38432773,41807.0,41806.0,0.003503]
[1644194354469,0.71500473,41807.0,41806.0,0.003503]
[1644194354969,0.38432773,41807.0,41806.0,0.003503]
[1644194356172,0.88432773,41807.0,41806.0,0.003503]
[1644194356373,0.6,41807.0,41806.0,0.003503]
[1644194358026,0.88115321,41807.0,41806.0,0.003503]
[1644194359724,0.6,41807.0,41806.0,0.003503]
[1644194360325,1.02,41807.0,41806.0,0.003503]
[1644194360523,1.3020908,41807.0,41806.0,0.003503]
[1644194361527,0.05,41806.0,41805.0,0.00011738]
[1644194361776,1.3359495,41806.0,41804.0,0.00060019]
[1644194361972,0.32055619,41801.0,41797.0,0.0022]
[1644194362173,0.05,41799.0,41797.0,0.0022]
[1644194362371,0.65542906,41799.0,41797.0,0.0022]
[1644194362571,0.9100143,41799.0,41797.0,0.0022]
[1644194362773,1.0100143,41799.0,41797.0,0.0002]
[1644194362974,0.330677,41798.0,41797.0,0.0002]
[1644194363574,0.61230881,41798.0,41792.0,0.01911488]
[1644194363776,0.61230881,41798.0,41792.0,0.00911488]
[1644194363777,0.05,41793.0,41792.0,0.00911488]
[1644194363976,0.428577,41793.0,41792.0,0.00911488]
[1644194364176,0.488577,41793.0,41792.0,0.00911488]
[1644194364377,0.86502026,41793.0,41792.0,0.00911488]
[1644194364573,0.86502026,41793.0,41791.0,0.01]
[1644194364574,0.6983,41793.0,41791.0,0.01]
[1644194364774,0.45466736,41792.0,41791.0,0.01]
[1644194364976,0.83324436,41792.0,41791.0,0.01]
[1644194365174,1.10893664,41792.0,41791.0,0.01]
[1644194365624,1.70893664,41792.0,41790.0,0.00132174]
[1644194365823,0.64085654,41791.0,41790.0,0.001]
[1644194366025,1.40613654,41791.0,41788.0,0.00050305]
[1644194366227,0.380677,41789.0,41788.0,0.00050305]
[1644194366423,0.83777791,41789.0,41788.0,0.00050305]
[1644194366623,0.83777791,41789.0,41781.0,0.0124]
[1644194366624,0.11974843,41787.0,41781.0,0.0124]
[1644194366823,0.05,41782.0,41781.0,0.0124]
[1644194367025,0.76738,41782.0,41781.0,0.0074]
[1644194367224,0.71738,41782.0,41781.0,0.0074]
[1644194367425,0.09324015,41782.0,41781.0,0.0074]
[1644194367626,0.4213897,41782.0,41781.0,0.0074]
[1644194367823,1.02791848,41782.0,41781.0,0.0074]
[1644194368023,1.07581848,41782.0,41781.0,0.0074]
[1644194368427,0.8999667,41782.0,41781.0,0.0074]
[1644194368623,0.5692897,41782.0,41781.0,0.0074]
[1644194368824,0.7892897,41782.0,41774.0,0.00842882]
[1644194369026,0.4692897,41782.0,41774.0,0.00842882]
[1644194369273,0.4192897,41782.0,41774.0,0.00842882]
[1644194369475,0.05987251,41780.0,41774.0,0.00842882]
[1644194369778,0.19419346,41775.0,41774.0,0.00842882]
[1644194370173,0.059872,41779.0,41774.0,0.00842882]
[1644194370576,0.05,41778.0,41774.0,0.00842882]
[1644194371175,0.109872,41779.0,41774.0,0.0033069]
[1644194371176,0.05,41775.0,41774.0,0.0033069]
[1644194371376,0.05,41775.0,41768.0,0.0011]
[1644194371377,0.55,41774.0,41768.0,0.0011]
[1644194371576,0.05,41769.0,41768.0,0.0011]
[1644194372177,0.32490654,41769.0,41768.0,0.0011]
[1644194372378,0.380677,41769.0,41768.0,0.0011]
[1644194372576,0.380677,41769.0,41764.0,0.0011]
[1644194372577,0.3822519,41769.0,41764.0,0.0011]
[1644194372777,0.05,41765.0,41764.0,0.0011]
[1644194373034,0.428577,41765.0,41763.0,0.00217372]
[1644194373229,0.60879939,41764.0,41751.0,0.187]
[1644194373433,0.27922096,41763.0,41758.0,0.00217388]
[1644194373629,0.2752262,41766.0,41758.0,0.00217388]
[1644194373832,0.05,41769.0,41758.0,0.00217388]
[1644194374032,0.561,41777.0,41755.0,0.012]
[1644194374033,0.85,41767.0,41755.0,0.012]
[1644194374232,0.85,41767.0,41751.0,0.7374]
[1644194374233,0.05,41757.0,41751.0,0.7374]
[1644194374434,0.05,41757.0,41752.0,0.330677]
[1644194374435,0.05,41754.0,41752.0,0.330677]
[1644194374642,0.3979,41753.0,41750.0,0.000501]
[1644194374832,0.05,41751.0,41750.0,0.000501]
[1644194375036,0.753511,41751.0,41750.0,0.000501]
[1644194375230,0.05,41749.0,41731.0,0.57177648]
[1644194375429,0.30257255,41748.0,41731.0,0.57177648]
[1644194375630,0.34547255,41748.0,41732.0,0.30725625]
[1644194375831,0.05,41750.0,41732.0,0.30725625]
[1644194376030,0.59324015,41751.0,41732.0,0.30725625]
[1644194376232,0.5,41748.0,41733.0,0.05]
[1644194376430,0.5,41748.0,41732.0,0.30725625]
[1644194376886,0.5,41748.0,41742.0,0.21564338]
[1644194378487,0.0193504,41749.0,41744.0,0.21217689]
[1644194378792,0.0193504,41749.0,41745.0,0.380714]
[1644194378991,0.09324015,41751.0,41747.0,1.2]
[1644194378992,1.5e-07,41751.0,41747.0,1.2]
[1644194379190,1.5e-07,41751.0,41748.0,0.0479]
[1644194379387,0.012,41756.0,41748.0,0.39799601]
[1644194379591,0.28648255,41769.0,41761.0,0.2498447]
[1644194379592,0.05,41768.0,41761.0,0.2498447]
[1644194379991,0.059893,41770.0,41761.0,0.2498447]
[1644194380195,0.28645433,41773.0,41761.0,0.2498447]
[1644194380196,0.05,41772.0,41761.0,0.2498447]
[1644194380634,0.05,41772.0,41763.0,0.26504622]
[1644194380831,0.05,41772.0,41764.0,0.33053]
[1644194381033,0.05568687,41774.0,41764.0,0.33064701]
[1644194381231,0.10568687,41774.0,41765.0,0.0479]
[1644194381432,0.05,41773.0,41765.0,0.04801701]
[1644194381631,0.05,41773.0,41765.0,0.0479]
[1644194381832,0.5,41772.0,41765.0,0.0479]
[1644194382334,0.5,41772.0,41759.0,0.0479]
[1644194382335,0.22542058,41768.0,41759.0,0.0479]
[1644194382533,0.22542058,41768.0,41757.0,0.00030195]
[1644194382534,0.05,41767.0,41757.0,0.00030195]
[1644194382736,0.22542058,41768.0,41757.0,0.00030195]
[1644194382931,1.90268581,41765.0,41757.0,0.00030195]
[1644194383132,0.22542058,41768.0,41756.0,0.0479]
[1644194383334,0.059885,41773.0,41761.0,0.20675649]
[1644194383335,0.34887541,41773.0,41761.0,0.20675649]
[1644194383534,0.00048678,41763.0,41761.0,0.20675649]
[1644194383734,0.00048678,41763.0,41762.0,0.33054]
[1644194384372,0.05988822,41772.0,41762.0,0.33054]
[1644194384573,0.05988822,41772.0,41760.0,0.25101274]
[1644194384775,0.00048677,41765.0,41760.0,0.25101274]
[1644194384973,0.00048677,41765.0,41761.0,0.330551]
[1644194385872,0.00049137,41765.0,41760.0,0.25101274]
[1644194386477,0.00049137,41765.0,41757.0,0.00049146]
[1644194386478,0.05,41761.0,41758.0,0.33058]
[1644194386675,0.48808895,41760.0,41757.0,0.00049146]
[1644194386878,0.48808895,41760.0,41745.0,0.17825776]
[1644194386879,0.05,41758.0,41745.0,0.17825776]
[1644194387076,0.2788048,41758.0,41745.0,0.17825776]
[1644194387274,0.2788048,41758.0,41745.0,0.3840954]
[1644194387475,0.05,41759.0,41757.0,0.00049145]
[1644194388128,0.330915,41758.0,41750.0,0.26058274]
[1644194388330,0.19901043,41760.0,41750.0,0.26058274]
[1644194388927,0.19901043,41760.0,41750.0,0.5136442]
[1644194389128,0.19901043,41760.0,41750.0,0.26058274]
[1644194389329,0.2844908,41759.0,41745.0,0.3840954]
[1644194389630,0.05,41755.0,41745.0,0.38440121]
[1644194389831,0.05,41755.0,41745.0,0.4490796]
[1644194389832,0.059914,41753.0,41745.0,0.4490796]
[1644194390027,0.2844908,41759.0,41753.0,0.06078368]
[1644194390028,0.05990571,41757.0,41753.0,0.06078368]
[1644194390230,0.05990571,41757.0,41745.0,0.4490796]
[1644194390434,0.05990571,41757.0,41748.0,0.21608449]
[1644194390628,0.05,41755.0,41748.0,0.21608449]
[1644194390827,0.05990571,41757.0,41748.0,0.21608449]
[1644194391029,0.05,41756.0,41748.0,0.21608449]
[1644194391230,0.05,41756.0,41748.0,0.44720544]
[1644194391428,0.05,41756.0,41745.0,0.00030581]
[1644194391429,0.05,41755.0,41745.0,0.00030581]
[1644194391630,0.05,41748.0,41745.0,0.00030581]
[1644194391872,0.330915,41747.0,41734.0,0.5429]
[1644194392072,0.330915,41747.0,41745.0,0.00049108]
[1644194392073,0.05,41747.0,41745.0,0.00049108]
[1644194392274,0.61239168,41746.0,41745.0,0.00049108]
[1644194392474,0.91508558,41746.0,41745.0,0.00049108]
[1644194392674,1.63364558,41746.0,41745.0,0.00049108]
[1644194392874,1.73136259,41746.0,41745.0,0.00049108]
[1644194393078,0.98586092,41746.0,41734.0,0.5429]
[1644194393274,0.98586092,41746.0,41743.0,0.00049746]
[1644194393275,1.26933326,41746.0,41743.0,0.00049746]
[1644194393475,0.33094,41745.0,41743.0,0.00049746]
[1644194393675,0.38094,41745.0,41743.0,0.00049746]
[1644194393876,0.38094,41744.0,41743.0,0.00049746]
[1644194394179,1.3305,41744.0,41743.0,0.00049746]
[1644194394381,0.059933,41742.0,41741.0,0.00049748]
[1644194394776,0.109933,41742.0,41741.0,0.00049748]
[1644194395375,0.76356,41744.0,41740.0,0.22255507]
[1644194395376,0.71856,41744.0,41740.0,0.22255507]
[1644194395632,0.71856,41744.0,41742.0,0.22747842]
[1644194395829,0.71856,41744.0,41743.0,0.005]
[1644194396026,0.71856,41744.0,41743.0,0.07138662]
[1644194396429,1.07e-05,41749.0,41744.0,0.1]
[1644194396633,0.75252,41768.0,41744.0,0.1]
[1644194396634,0.00372,41768.0,41748.0,0.055]
[1644194396831,0.42,41769.0,41767.0,0.07020806]
[1644194397037,0.42,41769.0,41767.0,0.07520806]
[1644194397430,0.03816,41774.0,41767.0,0.07520806]
[1644194397431,0.2010504,41773.0,41767.0,0.7866793]
[1644194397629,0.2010504,41773.0,41768.0,0.37884]
[1644194397832,0.2010504,41773.0,41769.0,0.25235938]
[1644194398030,0.2010504,41773.0,41770.0,0.0479]
[1644194398232,0.045,41772.0,41770.0,0.0479]
[1644194398529,0.61681082,41771.0,41764.0,0.00011581]
[1644194398731,0.61681082,41771.0,41759.0,0.0529]
[1644194398732,0.05989,41770.0,41759.0,0.0479]
[1644194398930,0.03816,41774.0,41771.0,0.07870914]
[1644194399129,0.71818,41773.0,41772.0,0.005]
[1644194399382,0.71818,41773.0,41771.0,0.07870914]
[1644194399782,0.71818,41773.0,41767.0,0.24009688]
[1644194399981,0.71818,41773.0,41764.0,0.005]
[1644194399982,0.045,41771.0,41764.0,0.00511581]
[1644194400283,0.71818,41773.0,41765.0,0.00011581]
[1644194400481,0.71818,41773.0,41769.0,0.005]
[1644194401085,0.71818,41773.0,41772.0,0.005]
[1644194401287,0.71818,41773.0,41772.0,0.3079141]
[1644194401483,0.71818,41773.0,41772.0,1.25995925]
[1644194401684,0.71818,41773.0,41772.0,1.21205925]
[1644194402581,0.71818,41773.0,41772.0,1.11205925]
[1644194402783,0.71818,41773.0,41772.0,0.33594]
[1644194403032,0.71818,41773.0,41771.0,0.00011581]
[1644194403223,0.71818,41773.0,41772.0,0.0441]
[1644194403824,0.71818,41773.0,41772.0,0.0491]
[1644194404025,0.71818,41773.0,41772.0,0.11344837]
[1644194404225,0.23270984,41773.0,41772.0,0.11344837]
[1644194404425,0.01,41779.0,41773.0,0.13108]
[1644194404625,0.03656916,41791.0,41778.0,0.005]
[1644194404823,0.03656916,41791.0,41788.0,0.35785949]
[1644194405025,0.03656916,41791.0,41788.0,0.35285949]
[1644194405224,0.03656916,41791.0,41788.0,0.35785949]
[1644194405422,0.03656916,41791.0,41788.0,0.15785949]
[1644194405824,0.03705733,41791.0,41786.0,0.005]
[1644194406027,0.03705733,41791.0,41785.0,0.0441]
[1644194406028,0.03705733,41791.0,41788.0,0.005]
[1644194406224,0.03705733,41791.0,41785.0,0.0441]
[1644194406425,0.03705733,41791.0,41785.0,0.0491]
[1644194406879,0.03656916,41791.0,41788.0,0.005]
[1644194407078,0.01047693,41789.0,41788.0,0.005]
[1644194407277,0.01047693,41789.0,41788.0,0.33594]
[1644194407479,0.01047693,41789.0,41788.0,0.67685131]
[1644194408078,0.01,41789.0,41788.0,0.76122225]
[1644194409077,0.01,41789.0,41788.0,0.33594]
[1644194409479,0.332214,41799.0,41788.0,0.33594]
[1644194409480,0.00047909,41791.0,41789.0,1.05]
[1644194409678,0.00047909,41791.0,41790.0,0.33094]
[1644194409878,0.00047909,41791.0,41786.0,0.31962705]
[1644194410087,0.24784864,41791.0,41787.0,0.34620812]
[1644194410280,0.24784864,41791.0,41785.0,0.0441]
[1644194410539,0.05,41790.0,41785.0,0.0441]
[1644194410729,0.059853,41792.0,41787.0,0.01526812]
[1644194411030,0.00049033,41791.0,41788.0,0.01526812]
[1644194411233,0.00049033,41791.0,41789.0,0.33094]
[1644194411730,0.332214,41799.0,41789.0,0.24516084]
[1644194411930,0.332214,41799.0,41788.0,0.01526812]
[1644194411931,0.03473188,41795.0,41788.0,0.01526812]
[1644194412230,0.00049062,41792.0,41788.0,0.01526812]
[1644194412733,0.03473188,41791.0,41788.0,0.01526812]
[1644194412930,0.24205062,41791.0,41780.0,0.02127884]
[1644194413134,0.20731874,41791.0,41780.0,0.02127884]
[1644194413631,0.33212606,41790.0,41780.0,0.02127884]
[1644194413934,0.059859,41789.0,41780.0,0.02127884]
[1644194414132,0.05,41790.0,41785.0,0.01526812]
[1644194414379,0.00049024,41787.0,41785.0,0.01526812]
[1644194414580,0.00049024,41787.0,41786.0,0.33094]
[1644194415382,0.23442774,41791.0,41782.0,0.22646184]
[1644194415582,5.02558,41787.0,41779.0,0.34224672]
[1644194415981,5.02558,41787.0,41774.0,0.1769]
[1644194415982,5.07558,41787.0,41774.0,0.1769]
[1644194416181,5.07558,41787.0,41773.0,0.22284184]
[1644194416182,0.23600272,41786.0,41773.0,0.22284184]
[1644194416585,5.08543713,41787.0,41777.0,0.21410324]
[1644194416785,0.00049028,41782.0,41777.0,0.21410324]
[1644194416981,5.02558,41787.0,41777.0,0.21410324]
[1644194416982,0.21174839,41784.0,41781.0,0.08931721]
[1644194417180,5.02558,41787.0,41781.0,0.08931721]
[1644194417382,5.02558,41787.0,41786.0,0.01526812]
[1644194417781,5.02558,41787.0,41785.0,0.01526812]
[1644194418028,5.02558,41787.0,41783.0,0.26002483]
[1644194418224,0.20110167,41786.0,41783.0,0.26002483]
[1644194418425,0.20110167,41786.0,41785.0,0.01526812]
[1644194418624,0.19110167,41786.0,41785.0,0.01526812]
[1644194418924,5.02558,41787.0,41785.0,0.01526812]
[1644194419126,5.02558,41787.0,41785.0,0.08919918]
[1644194419825,5.02558,41787.0,41785.0,0.32015043]
[1644194420023,5.02558,41787.0,41781.0,0.01526812]
[1644194420227,5.07558,41787.0,41781.0,0.01526812]
[1644194420827,5.07558,41787.0,41785.0,0.01526812]
[1644194421780,5.07558,41787.0,41778.0,0.01526812]
[1644194421781,0.03473188,41786.0,41778.0,0.01526812]
[1644194421974,0.03473188,41786.0,41770.0,0.1753]
[1644194421975,0.03473188,41780.0,41772.0,0.03578846]
[1644194422174,0.09459288,41785.0,41775.0,0.01526812]
[1644194422373,0.109861,41785.0,41775.0,0.01526812]
[1644194422575,0.24616417,41781.0,41775.0,0.09774669]
[1644194422975,0.29616417,41781.0,41775.0,0.01526812]
[1644194423676,0.059864,41780.0,41775.0,0.01526812]
[1644194423878,0.03473188,41776.0,41771.0,0.5665]
[1644194424078,0.03473188,41774.0,41769.0,0.00197767]
[1644194424280,0.28366063,41780.0,41769.0,0.00197767]
[1644194424477,0.29926251,41780.0,41770.0,0.03439812]
[1644194424679,0.059875,41775.0,41770.0,0.03439812]
[1644194425726,0.01560188,41771.0,41768.0,0.00011581]
[1644194425927,0.01560188,41771.0,41767.0,0.00011581]
[1644194425928,0.33094,41770.0,41767.0,0.00011581]
[1644194426124,0.19525728,41771.0,41763.0,0.01861334]
[1644194426125,0.310648,41769.0,41763.0,0.01861334]
[1644194426329,0.410648,41769.0,41763.0,0.01861334]
[1644194426828,0.360648,41769.0,41763.0,0.00011581]
[1644194427025,0.01560188,41768.0,41762.0,0.00048763]
[1644194427225,0.05,41769.0,41762.0,0.00060344]
[1644194427625,0.1098844,41770.0,41762.0,0.00011581]
[1644194427826,0.1098844,41770.0,41762.0,0.33154343]
[1644194427827,0.01560188,41766.0,41762.0,0.33154343]
[1644194428026,0.07548388,41766.0,41762.0,0.33154343]
[1644194428227,0.059882,41766.0,41762.0,0.33154343]
[1644194428827,0.059882,41766.0,41764.0,0.2190669]
[1644194429134,0.059886,41773.0,41764.0,0.2190669]
[1644194429135,0.05987267,41774.0,41765.0,0.36533812]
[1644194429391,0.119743,41778.0,41776.0,0.06390834]
[1644194429585,0.119743,41778.0,41771.0,0.03439812]
[1644194429586,0.76794,41777.0,41771.0,0.03439812]
[1644194429986,0.76794,41777.0,41775.0,0.03439812]
[1644194429987,0.71794,41777.0,41775.0,0.03439812]
[1644194430187,0.71794,41777.0,41771.0,0.34290199]
[1644194430588,0.01560188,41775.0,41766.0,0.0018055]
[1644194430786,0.01560188,41775.0,41766.0,0.00192131]
[1644194430986,0.01560188,41775.0,41766.0,0.0018055]
[1644194431186,0.8278081,41777.0,41774.0,0.03439812]
[1644194431386,0.8278081,41777.0,41770.0,0.22723153]
[1644194431587,0.8278081,41777.0,41774.0,0.03439812]
[1644194431786,0.8278081,41777.0,41764.0,0.00011581]
[1644194431787,0.11975616,41774.0,41764.0,0.00011581]
[1644194431991,0.01560188,41772.0,41765.0,0.00011581]
[1644194432188,0.05988228,41770.0,41763.0,0.00011581]
[1644194432388,0.05988228,41770.0,41762.0,0.0018056]
[1644194432592,0.169767,41773.0,41765.0,0.03439812]
[1644194432788,0.71794,41777.0,41771.0,0.03439812]
[1644194433033,0.82781,41777.0,41769.0,0.03439812]
[1644194433225,0.84341188,41777.0,41768.0,0.06381764]
[1644194433424,0.05987194,41774.0,41768.0,0.06381764]
[1644194434628,0.07547382,41774.0,41768.0,0.06381764]
[1644194434827,0.19522382,41774.0,41764.0,0.00011581]
[1644194435027,0.19522382,41774.0,41762.0,0.00045737]
[1644194435028,0.05988299,41767.0,41762.0,0.00045737]
[1644194435327,0.05988299,41767.0,41764.0,0.03439812]
[1644194435328,0.040745,41766.0,41764.0,0.03439812]
[1644194435526,0.040745,41766.0,41765.0,0.33094]
[1644194436526,0.032505,41766.0,41765.0,0.33094]
[1644194436771,0.082505,41766.0,41765.0,0.33094]
[1644194436973,0.032505,41766.0,41764.0,0.03439812]
[1644194437181,0.059876,41770.0,41767.0,0.04767146]
[1644194438374,0.11976005,41770.0,41767.0,0.04767146]
[1644194438775,0.11976005,41770.0,41769.0,0.03439812]
[1644194438776,0.059876,41770.0,41769.0,0.03439812]
[1644194439173,0.059876,41770.0,41769.0,0.32386272]
[1644194439575,0.42453383,41777.0,41769.0,0.32386272]
[1644194440374,0.40893195,41777.0,41769.0,0.32386272]
[1644194441034,0.40893195,41777.0,41775.0,0.03439812]
[1644194441236,0.40893195,41777.0,41776.0,0.08139015]
[1644194441433,0.02008279,41781.0,41776.0,0.08139015]
[1644194441728,0.00045629,41784.0,41780.0,0.03439812]
[1644194442128,0.22574914,41785.0,41780.0,0.03439812]
[1644194442532,0.00045632,41784.0,41780.0,0.03439812]
[1644194443331,0.01560188,41783.0,41777.0,0.03439812]
[1644194443529,0.0180874,41785.0,41777.0,0.03439812]
[1644194443730,0.00045629,41784.0,41783.0,0.03439812]
[1644194444130,0.00045629,41784.0,41776.0,0.13139015]
[1644194444369,0.00045629,41784.0,41777.0,0.03439812]
[1644194444571,0.23186491,41783.0,41777.0,0.03439812]
[1644194444772,0.02060188,41782.0,41776.0,0.31014944]
[1644194445371,0.02060188,41782.0,41773.0,0.02939812]
[1644194445570,0.02060188,41782.0,41775.0,0.24868835]
[1644194445774,0.05986153,41781.0,41775.0,0.24868835]
[1644194446071,0.02060188,41782.0,41780.0,0.02939812]
[1644194446271,0.00045627,41784.0,41780.0,0.02939812]
[1644194446471,0.00045627,41784.0,41778.0,0.13250071]
[1644194447073,4.50916416,41787.0,41778.0,0.13250071]
[1644194447471,0.02105816,41784.0,41778.0,0.13250071]
[1644194447676,0.02105816,41784.0,41778.0,0.08250071]
[1644194447873,0.02105816,41784.0,41775.0,0.24868835]
[1644194448334,0.02060188,41784.0,41775.0,0.24868835]
[1644194448533,0.21015682,41781.0,41775.0,0.24868835]
[1644194448730,0.11972746,41780.0,41775.0,0.24868835]
[1644194449332,0.11972746,41780.0,41775.0,0.33512746]
[1644194449531,0.11972746,41780.0,41775.0,0.24868835]
[1644194449733,0.11972746,41780.0,41774.0,0.02939812]
[1644194450349,0.00045618,41784.0,41774.0,0.02939812]
[1644194450531,0.00045618,41784.0,41776.0,0.07785701]
[1644194450731,0.11971221,41785.0,41774.0,0.02939812]
[1644194450732,0.02060188,41781.0,41774.0,0.02939812]
[1644194450931,0.02060188,41781.0,41774.0,0.08925312]
[1644194451132,0.02060188,41781.0,41775.0,0.19280164]
[1644194451332,0.02060188,41781.0,41780.0,0.02939812]
[1644194451534,0.00045618,41784.0,41780.0,0.02939812]
[1644194451773,0.02060188,41781.0,41780.0,0.39976697]
[1644194451974,0.05985534,41785.0,41780.0,0.39976697]
[1644194452175,0.00045628,41784.0,41780.0,0.37036885]
[1644194452379,0.00045628,41784.0,41783.0,0.02939812]
[1644194453175,4.25809628,41787.0,41784.0,0.4]
[1644194453375,4.25809628,41787.0,41781.0,0.08924512]
[1644194453578,0.02105815,41786.0,41781.0,0.02939812]
[1644194453780,0.18360988,41787.0,41785.0,0.02939812]
[1644194453981,0.05,41794.0,41786.0,1.52504]
[1644194454175,0.438069,41797.0,41787.0,0.39492054]
[1644194454377,0.018069,41797.0,41791.0,0.059825]
[1644194454576,0.018069,41797.0,41792.0,0.33094]
[1644194454776,0.01,41799.0,41792.0,0.33094]
[1644194454777,0.02060188,41794.0,41792.0,0.33094]
[1644194454976,0.05984415,41795.0,41793.0,0.33094]
[1644194455174,0.05984415,41795.0,41788.0,0.26602596]
[1644194455375,0.05984415,41795.0,41789.0,0.33094]
[1644194456025,0.02060188,41793.0,41788.0,0.31012596]
[1644194456321,0.00015356,41794.0,41788.0,0.0441]
[1644194456522,0.02060188,41789.0,41788.0,0.37504]
[1644194457022,0.05984957,41791.0,41788.0,0.37504]
[1644194457221,0.00015356,41791.0,41788.0,0.37504]
[1644194458024,0.02060188,41797.0,41790.0,0.02939812]
[1644194458626,0.00015356,41792.0,41791.0,0.390772]
[1644194459024,0.00015356,41792.0,41791.0,0.33094]
[1644194459275,0.00015356,41792.0,41791.0,0.48094]
[1644194459475,0.01,41799.0,41795.0,0.26211903]
[1644194459677,0.00053062,41794.0,41791.0,0.15]
[1644194459877,0.00053062,41794.0,41792.0,0.33094]
[1644194460276,0.00053062,41794.0,41793.0,0.02939812]
[1644194460476,0.00053062,41794.0,41793.0,0.55135465]
[1644194460782,0.02060188,41797.0,41794.0,0.23380091]
[1644194460977,0.01,41799.0,41794.0,0.32302703]
[1644194461182,0.0005306,41796.0,41795.0,0.33094]
[1644194461377,0.0005306,41796.0,41795.0,0.36033812]
[1644194461777,0.0005306,41796.0,41795.0,0.75736978]